Workbook

Sheet S251Outturn201011_TA1Report
A3: DEPARTMENT FOR EDUCATION DATA COLLECTION Year 2010-11 Table A1 - CHILDREN AND YOUNG PEOPLE'S SERVICES | D3: LA Name | G3: Brent | Q3: LA No. | T3: 304
D5: Contact | F5: Shelina Merali | M5: Email
O6: shelina.merali@brent.gov.uk
D9: Tel No | H9: 2089375336
C12: OWN PROVISION | I12: PRIVATE | J12: OTHER PUBLIC | R12: VOLUNTARY | W12: TOTAL EXPENDITURE | X12: INCOME | Y12: NET Current Expenditure | Z12: Govt. Grants Inside AEF | AA12: Govt. Grants Outside AEF | AB12: LEA NET Revenue Expenditure
C13: (Y) | I13: (Z (i)) | J13: (Z (ii)) | R13: (Z (iii)) | W13: (k) | X13: (l) | Y13: (m) | Z13: (n) | AA13: (o) | AB13: (p)
A14: YOUTH JUSTICE
A15: 1 Secure accommodation (youth justice) | C15: 0 | I15: 0 | J15: 0 | R15: 0 | W15: 0 | X15: 0 | Y15: 0 | Z15: 0 | AA15: 0 | AB15: 0
A16: 2 Youth offender teams | C16: 2034525.7 | I16: 0 | J16: 0 | R16: 0 | W16: 2034525.7 | X16: 0 | Y16: 2034525.7 | Z16: 0 | AA16: 0 | AB16: 2034525.7
A17: 3 Other Youth Justice service | C17: 86920.55 | I17: 0 | J17: 0 | R17: 0 | W17: 86920.55 | X17: 66669 | Y17: 20251.55 | Z17: 0 | AA17: 0 | AB17: 20251.55
A18: 4 Total Youth Justice | C18: 2121446.25 | I18: 0 | J18: 0 | R18: 0 | W18: 2121446.25 | X18: 66669 | Y18: 2054777.25 | Z18: 0 | AA18: 0 | AB18: 2054777.25
A19: SURE START CHILDREN'S CENTRES
A20: 5 Spend on local authority management costs relating to Sure Start Children's Centres | C20: 3211583.1 | I20: 0 | J20: 0 | R20: 0 | W20: 3211583.1 | X20: 0 | Y20: 3211583.1 | Z20: 2999918 | AA20: 0 | AB20: 211665.1
A21: 6 Spend by individual Sure Start Children's Centres | C21: 5778926.81 | I21: 0 | J21: 0 | R21: 0 | W21: 5778926.81 | X21: 0 | Y21: 5778926.81 | Z21: 5341816 | AA21: 0 | AB21: 437110.81
A22: 7 Spend on local authority provided or commissioned area-wide services delivered through Sure Start Children's Centres | C22: 5114192.5 | I22: 978074.04 | J22: 0 | R22: 0 | W22: =C22+I22 -> 6092266.54 | X22: 0 | Y22: =W22-X22 -> 6092266.54 | Z22: 3591130 | AA22: 0 | AB22: =Y22-Z22 -> 2501136.54
A23: 8 Total Sure Start Children's Centres | C23: =SUM(C20:H22) -> 14104702.41 | I23: =SUM(I20:I22) -> 978074.04 | J23: =SUM(J20:Q22) -> 0 | R23: =SUM(R20:V22) -> 0 | W23: =SUM(W20:W22) -> 15082776.45 | X23: 0 | Y23: 15082776.45 | Z23: 11932864 | AA23: 0 | AB23: 3149912.45
A24: CHILDREN LOOKED AFTER
A25: 9 Residential care | C25: 107868.54 | I25: 4903496.33 | J25: 0 | R25: 0 | W25: =C25+I25 -> 5011364.87 | X25: 0 | Y25: =W25-X25 -> 5011364.87 | Z25: 0 | AA25: 0 | AB25: =Y25-Z25-AA25 -> 5011364.87
A26: 10 Fostering services | C26: 1960595.21 | I26: 5776026.57 | J26: 0 | R26: 0 | W26: =I26+C26 -> 7736621.78 | X26: 0 | Y26: =W26-X26 -> 7736621.78 | Z26: 0 | AA26: 0 | AB26: =Y26-Z26-AA26 -> 7736621.78
A27: 11 Other children looked after services | C27: 0 | I27: 0 | J27: 0 | R27: 0 | W27: 0 | X27: 0 | Y27: 0 | Z27: 0 | AA27: 0 | AB27: 0
A28: 12 Secure accommodation (welfare) | C28: 37676.27 | I28: 202072.55 | J28: 0 | R28: 0 | W28: 239748.82 | X28: 0 | Y28: 239748.82 | Z28: 0 | AA28: 0 | AB28: 239748.82
A29: 13 Short breaks (respite) for looked after children | C29: 0 | I29: 466752.07 | J29: 0 | R29: 0 | W29: =I29 -> 466752.07 | X29: 0 | Y29: =W29-X29 -> 466752.07 | Z29: 0 | AA29: 0 | AB29: =Y29-Z29-AA29 -> 466752.07
A30: 14 Children placed with family and friends | C30: 425759.37 | I30: 0 | J30: 0 | R30: 0 | W30: =C30 -> 425759.37 | X30: 0 | Y30: =W30-X30 -> 425759.37 | Z30: 0 | AA30: 0 | AB30: =Y30-Z30-AA30 -> 425759.37
A31: 15 Advocacy services for children looked after | C31: 0 | I31: 0 | J31: 0 | R31: 0 | W31: 0 | X31: 0 | Y31: 0 | Z31: 0 | AA31: 0 | AB31: 0
A32: 16 Education of looked after children | C32: 377690.16 | I32: 0 | J32: 0 | R32: 0 | W32: 377690.16 | X32: 3000 | Y32: 374690.16 | Z32: 0 | AA32: 0 | AB32: 374690.16
A33: 17 Leaving care support services | C33: 1697100.74 | I33: 3877846.77 | J33: 0 | R33: 0 | W33: =C33+I33 -> 5574947.51 | X33: 14549.49 | Y33: =W33-X33 -> 5560398.02 | Z33: 63657.15 | AA33: 0 | AB33: =Y33-Z33 -> 5496740.87
A34: 18 Asylum seeker services - children | C34: 802407.88 | I34: 744836.42 | J34: 0 | R34: 0 | W34: 1547244.3 | X34: 0 | Y34: 1547244.3 | Z34: 1316800.98 | AA34: 0 | AB34: 230443.32
A35: 19 Total Children Looked After | C35: =SUM(C25:H34) -> 5409098.17 | I35: =SUM(I25:I34) -> 15971030.71 | J35: =SUM(J25:Q34) -> 0 | R35: =SUM(R25:V34) -> 0 | W35: =SUM(W25:W34) -> 21380128.88 | X35: 17549.49 | Y35: 21362579.39 | Z35: 1380458.13 | AA35: 0 | AB35: 19982121.26 | IV35: =SUM(C35:IU35) -> 85502966.03
A36: CHILDREN AND YOUNG PEOPLE'S SAFETY
A37: 20 Child death review processes | C37: 0 | I37: 0 | J37: 0 | R37: 0 | W37: 0 | X37: 0 | Y37: 0 | Z37: 0 | AA37: 0 | AB37: 0
A38: 21 LA functions in relation to child protection | C38: 347062.05 | I38: 0 | J38: 0 | R38: 0 | W38: 347062.05 | X38: 0 | Y38: 347062.05 | Z38: 0 | AA38: 0 | AB38: 347062.05
A39: 22 Local safeguarding childrens board | C39: 227043.57 | I39: 0 | J39: 0 | R39: 0 | W39: 227043.57 | X39: 92202.3 | Y39: 134841.27 | Z39: 0 | AA39: 0 | AB39: 134841.27
A40: 23 Total Children and Young People's Safety | C40: 574105.62 | I40: 0 | J40: 0 | R40: 0 | W40: 574105.62 | X40: 92202.3 | Y40: 481903.32 | Z40: 0 | AA40: 0 | AB40: 481903.32
A41: FAMILY SUPPORT SERVICES
A42: 24 Direct payments | C42: 0 | I42: 576432.53 | J42: 0 | R42: 0 | W42: 576432.53 | X42: 161000 | Y42: 415432.53 | Z42: 0 | AA42: 0 | AB42: 415432.53
A43: 25 Short breaks (respite) for disabled children | C43: 1294482.9 | I43: 0 | J43: 0 | R43: 0 | W43: 1294482.9 | X43: 12546 | Y43: 1281936.9 | Z43: 0 | AA43: 0 | AB43: 1281936.9
A44: 26 Home care services | C44: 2443487.27 | I44: 451461.29 | J44: 232931.71 | R44: 0 | W44: 3127880.27 | X44: 1265352 | Y44: 1862528.27 | Z44: 0 | AA44: 0 | AB44: 1862528.27
A45: 27 Equiptment and adaptations | C45: 187557.72 | I45: 0 | J45: 0 | R45: 0 | W45: 187557.72 | X45: 0 | Y45: 187557.72 | Z45: 0 | AA45: 0 | AB45: 187557.72
A46: 28 Other family support services | C46: 2911934.02 | I46: 0 | J46: 0 | R46: 0 | W46: =SUM(C46) -> 2911934.02 | X46: 502522.7 | Y46: =W46-X46 -> 2409411.32 | Z46: 0 | AA46: 0 | AB46: =Y46-Z46-AA46 -> 2409411.32
A47: 29 Contribution to health care of individual children | C47: 1050140.11 | I47: 0 | J47: 0 | R47: 0 | W47: =SUM(C47) -> 1050140.11 | X47: 382903 | Y47: =W47-X47 -> 667237.11 | Z47: 0 | AA47: 0 | AB47: =Y47-Z47-AA47 -> 667237.11
A48: 30 Total Family Support Services | C48: =SUM(C42:H47) -> 7887602.02 | I48: =SUM(I42:I47) -> 1027893.82 | J48: =SUM(J42:Q47) -> 232931.71 | R48: =SUM(R42:V47) -> 0 | W48: =SUM(W42:W47) -> 9148427.55 | X48: 2324323.7 | Y48: 6824103.85 | Z48: 0 | AA48: 0 | AB48: 6824103.85
A49: OTHER CHILDREN'S AND FAMILIES SERVICES
A50: 31 Adoption services | C50: 43915.22 | I50: 1025522.73 | J50: 630.67 | R50: 0 | W50: 1070068.62 | X50: 0 | Y50: 1070068.62 | Z50: 0 | AA50: 0 | AB50: 1070068.62
A51: 32 Special guardianship support | C51: 0 | I51: 1846049 | J51: 0 | R51: 0 | W51: 1846049 | X51: 0 | Y51: 1846049 | Z51: 0 | AA51: 0 | AB51: 1846049
A52: 33 Other children's and families services | C52: 571215.97 | I52: 0 | J52: 0 | R52: 0 | W52: =C52 -> 571215.97 | X52: 138592.82 | Y52: =W52-X52 -> 432623.15 | Z52: 152045.62 | AA52: 0 | AB52: =Y52-Z52-AA52 -> 280577.53
A53: 34 Total Other Children's and Families Services | C53: =SUM(C50:H52) -> 615131.19 | I53: =SUM(I50:I52) -> 2871571.73 | J53: =SUM(J50:Q52) -> 630.67 | R53: =SUM(R50:V52) -> 0 | W53: =SUM(W50:W52) -> 3487333.59 | X53: 138592.82 | Y53: 3348740.77 | Z53: 152045.62 | AA53: 0 | AB53: 3196695.15
A54: CHILDREN'S SERVICES STRATEGY
A55: 35 Children's and young people's plan | C55: 0 | I55: 0 | J55: 0 | R55: 0 | W55: 0 | X55: 0 | Y55: 0 | Z55: 0 | AA55: 0 | AB55: 0
A56: 36 Partnership costs | C56: 259835.41 | I56: 0 | J56: 0 | R56: 0 | W56: =C56 -> 259835.41 | X56: 0 | Y56: =W56-X56 -> 259835.41 | Z56: 0 | AA56: 0 | AB56: =Y56-Z56-AA56 -> 259835.41
A57: 37 Central commissioning function | C57: 641059.81 | I57: 0 | J57: 0 | R57: 0 | W57: =C57 -> 641059.81 | X57: 121 | Y57: =W57-X57 -> 640938.81 | Z57: 0 | AA57: 0 | AB57: =Y57-Z57 -> 640938.81
A58: 38 Total Children's Services Strategy | C58: =SUM(C55:H57) -> 900895.22 | I58: =SUM(I55:I57) -> 0 | J58: =SUM(J55:Q57) -> 0 | R58: =SUM(R55:V57) -> 0 | W58: =SUM(W55:W57) -> 900895.22 | X58: 121 | Y58: 900774.22 | Z58: 0 | AA58: 0 | AB58: 900774.22 | IV58: =SUM(C58:IU58) -> 3603459.88
A59: SOCIAL WORKERS
A60: 39 Commissioning and social work | C60: 8118998.17 | I60: 0 | J60: 0 | R60: 0 | W60: =C60 -> 8118998.17 | X60: 192311.59 | Y60: =W60-X60 -> 7926686.58 | Z60: 0 | AA60: 0 | AB60: =Y60-Z60-AA60 -> 7926686.58
A61: 40 Child Trust Fund top ups | C61: 729689.49 | I61: 0 | J61: 0 | R61: 0 | W61: =C61 -> 729689.49 | X61: 0 | Y61: =W61 -> 729689.49 | Z61: 0 | AA61: 0 | AB61: =Y61-Z61-AA61 -> 729689.49
A62: SERVICES FOR YOUNG PEOPLE
A63: 41 Universal services for young people (including youth work, positive activities and information, advice and guidance) | C63: 4530936.94 | I63: 0 | J63: 0 | R63: 0 | W63: 4530936.94 | X63: 1772950 | Y63: 2757986.94 | Z63: 149687 | AA63: 0 | AB63: 2608299.94
A64: 42 Targeted services for young people (including youth work, positive activities and information, advice and guidance) | C64: 652842.88 | I64: 0 | J64: 0 | R64: 0 | W64: =C64 -> 652842.88 | X64: 515474.78 | Y64: =W64-X64 -> 137368.1 | Z64: 0 | AA64: 0 | AB64: =Y64-Z64-AA64 -> 137368.1
A65: 43 Substances misuse services (Drugs, alcohol and volatile substances) | C65: 319879.05 | I65: 0 | J65: 0 | R65: 0 | W65: 319879.05 | X65: 204838.69 | Y65: 115040.36 | Z65: 0 | AA65: 0 | AB65: 115040.36
A66: 44 Teenage pregnancy services | C66: 159935.09 | I66: 0 | J66: 0 | R66: 0 | W66: 159935.09 | X66: 25015 | Y66: 134920.09 | Z66: 0 | AA66: 0 | AB66: 134920.09
A67: 45 Connexions | C67: 2133888.57 | I67: 0 | J67: 0 | R67: 0 | W67: 2133888.57 | X67: 0 | Y67: 2133888.57 | Z67: 0 | AA67: 0 | AB67: 2133888.57
A68: 46 Student support/including mandatory awards | C68: 0 | I68: 0 | J68: 0 | R68: 0 | W68: 0 | X68: 0 | Y68: 0 | Z68: 0 | AA68: 0 | AB68: 0
A69: 47 Total Services for Young People | C69: =SUM(C63:H68) -> 7797482.53 | I69: =SUM(I63:I68) -> 0 | J69: =SUM(J63:Q68) -> 0 | R69: =SUM(R63:V68) -> 0 | W69: =SUM(W63:W68) -> 7797482.53 | X69: 2518278.47 | Y69: 5279204.06 | Z69: 149687 | AA69: 0 | AB69: 5129517.06
A70: 48 Capital Expenditure from Revenue (CERA) (Children's and young people's services) | W70: 0 | X70: 0 | Y70: 0
A71: 49 CHILDREN AND YOUNG PEOPLE'S SERVICES BUDGET (Including CERA) | W71: =W18+W23+W35+W40+W48+W53+W58+W60+W61+W69 -> 69341283.75 | X71: =X18+X23+X35+X40+X48+X53+X58+X60+X61+X69 -> 5350048.37 | Y71: =Y18+Y23+Y35+Y40+Y48+Y53+Y58+Y60+Y61+Y69 -> 63991235.38
A72: 50 CHILDREN AND YOUNG PEOPLE'S SERVICES BUDGET (excluding CERA) | W72: =W18+W23+W35+W40+W48+W53+W58+W61+W69+W60 -> 69341283.75 | X72: =X18+X23+X35+X40+X48+X53+X58+X61+X69+X60 -> 5350048.37 | Y72: =Y18+Y23+Y35+Y40+Y48+Y53+Y58+Y61+Y69+Y60 -> 63991235.38
A73: Memorandum Items (include below the part of the expenditure recorded in individual lines above)
A74: Children's centres
A75: 51 Spend on evidence based, early intervention services delivered through Sure Start Children's Centres (whether provided by children's centres using delegated budgets or commissioned by the local authority) - (memorandum expenditure extracted from lines 5 to 7 above) | W75: =W20+W22+W21 -> 15082776.45 | X75: Chk
A76: Services for young people
A77: 52 Youth work - (memorandum expenditure Included in lines 41 and 42 above) | W77: =W63+W64 -> 5183779.82
C79: NOTE:
C80: Please note that the figures on Table A and Table A1 for the Sn251 10.11 Outurn shown on the Brent website are different from the figures shown on the Department
C81: Of Education (DfE) website, as the figures shown on the Brent website have been updated and are more accurate than the figures on the DfE website,
C82: as the DfE loaded the spreadsheets onto their website, before the updates were completed.
